bitfinex/quotes_BTCUSD_20230120
["timestamp","ask_amount","ask_price","bid_price","bid_amount"]
[1674248103652,1.344627,22311.0,22308.0,0.48550845]
[1674248103918,0.326657,22310.0,22304.0,0.01678074]
[1674248104422,0.1985,22305.0,22303.0,5.0]
[1674248104431,1.029118,22306.0,22299.0,14.0]
[1674248104610,0.78617315,22300.0,22299.0,0.6617284]
[1674248104828,0.45447315,22295.0,22289.0,2.21184449]
[1674248105049,0.1325,22290.0,22289.0,2.16506631]
[1674248105284,1.42318643,22290.0,22289.0,2.16506631]
[1674248105503,0.52592443,22290.0,22289.0,2.16506631]
[1674248105863,0.71729558,22290.0,22289.0,10.16506631]
[1674248106115,0.448525,22296.0,22291.0,0.78077254]
[1674248106379,0.448525,22296.0,22292.0,0.04677818]
[1674248106380,0.45447315,22295.0,22292.0,0.04677818]
[1674248106635,0.0726732,22293.0,22292.0,4.9120215]
[1674248106892,0.0726732,22293.0,22291.0,0.78077254]
[1674248106893,0.5297442,22293.0,22291.0,0.78077254]
[1674248107173,0.5297442,22293.0,22281.0,17.0]
[1674248107174,1.89867952,22292.0,22281.0,15.82695623]
[1674248107418,1.89867952,22292.0,22256.0,2.61437431]
[1674248107419,0.1992,22283.0,22269.0,0.12084]
[1674248107683,0.1992,22283.0,22266.0,0.6]
[1674248107684,0.0416,22279.0,22266.0,0.6]
[1674248107940,0.0416,22279.0,22271.0,0.6]
[1674248108216,0.0416,22279.0,22269.0,0.449044]
[1674248108467,0.0416,22279.0,22278.0,0.6]
[1674248108726,0.48001433,22290.0,22278.0,0.6]
[1674248108727,0.48001433,22290.0,22284.0,0.09283176]
[1674248109255,0.48001433,22290.0,22282.0,6.0]
[1674248109256,0.15078,22285.0,22282.0,6.0]
[1674248109516,1.1985,22283.0,22270.0,0.04677818]
[1674248109791,0.00019,22272.0,22258.0,0.11622]
[1674248110081,0.18502243,22269.0,22256.0,0.11622]
[1674248110347,0.748581,22271.0,22260.0,12.45447315]
[1674248110348,0.49898843,22268.0,22260.0,12.45447315]
[1674248110607,0.49898843,22268.0,22260.0,12.0]
[1674248110608,0.18502243,22267.0,22260.0,12.0]
[1674248111097,0.898274,22265.0,22261.0,1.995]
[1674248111353,0.61915943,22265.0,22261.0,1.995]
[1674248111868,0.00019,22263.0,22261.0,1.995]
[1674248112116,0.449195,22262.0,22261.0,1.995]
[1674248112421,0.73134717,22262.0,22261.0,4.674404]
[1674248112669,1.02134717,22262.0,22246.0,0.017979]
[1674248112929,0.1976,22259.0,22247.0,0.00019]
[1674248113179,0.749483,22258.0,22247.0,0.00019]
[1674248113470,0.749483,22258.0,22247.0,0.018169]
[1674248113471,0.00019,22252.0,22247.0,0.018169]
[1674248113737,0.96635058,22257.0,22247.0,0.018169]
[1674248113738,0.49051343,22251.0,22247.0,0.018169]
[1674248113988,0.306522,22250.0,22247.0,0.018169]
[1674248114242,0.11318,22254.0,22247.0,0.017979]
[1674248114243,0.11318,22253.0,22247.0,0.017979]
[1674248114496,0.9054092,22252.0,22247.0,0.017979]
[1674248114785,0.00019,22250.0,22247.0,0.017979]
[1674248115062,0.75120085,22249.0,22247.0,0.017979]
[1674248115315,0.633031,22248.0,22237.0,5.0]
[1674248115581,0.45837505,22247.0,22238.0,0.63949558]
[1674248115834,0.13432905,22246.0,22239.0,0.18502243]
[1674248116129,0.13432905,22245.0,22240.0,0.013337]
[1674248116400,0.10432904,22244.0,22239.0,4.99973]
[1674248116668,0.10459904,22244.0,22239.0,4.99973]
[1674248116968,0.11075,22250.0,22239.0,4.99973]
[1674248116969,0.11075,22261.0,22251.0,0.00454508]
[1674248117220,0.00019,22257.0,22251.0,0.00400508]
[1674248117568,0.00019,22254.0,22252.0,0.18502243]
[1674248117827,0.11005,22258.0,22253.0,0.18502243]
[1674248118081,0.559235,22263.0,22253.0,0.18502243]
[1674248118082,0.00019,22264.0,22254.0,0.18502243]
[1674248118334,0.00019,22263.0,22255.0,0.18475243]
[1674248118584,0.449123,22266.0,22256.0,0.18502243]
[1674248118585,0.11075,22265.0,22256.0,0.18502243]
[1674248118875,0.11056,22265.0,22257.0,0.18502243]
[1674248119129,0.15,22261.0,22258.0,0.63949558]
[1674248119382,0.11012,22266.0,22259.0,0.013281]
[1674248119636,0.11012,22266.0,22255.0,0.449325]
[1674248119637,0.10993,22266.0,22258.0,0.45447315]
[1674248119909,0.11005,22272.0,22259.0,1.19239729]
[1674248120481,0.44888,22278.0,22261.0,0.45447315]
[1674248120485,0.10934,22280.0,22265.0,0.59981]
[1674248120486,0.10873,22280.0,22265.0,0.59981]
[1674248120748,0.0001,22280.0,22267.0,0.45447315]
[1674248120997,0.0001,22280.0,22270.0,0.898032]
[1674248121542,0.0001,22280.0,22270.0,0.880062]
[1674248121797,0.10572242,22280.0,22272.0,0.45447315]
[1674248122059,0.10572242,22280.0,22273.0,1.08845258]
[1674248122060,0.0001,22280.0,22273.0,1.08845258]
[1674248122313,0.0001,22280.0,22274.0,0.63949558]
[1674248122566,0.0001,22280.0,22275.0,1.55055858]
[1674248122847,0.0001,22280.0,22275.0,1.53732958]
[1674248123104,0.10562242,22279.0,22276.0,0.013223]
[1674248123353,0.10562242,22279.0,22275.0,0.897834]
[1674248123616,0.43796842,22278.0,22270.0,0.449018]
[1674248123879,0.43796842,22278.0,22263.0,0.70844]
[1674248123880,0.00019,22276.0,22267.0,0.449078]
[1674248124194,0.00019,22273.0,22265.0,0.449119]
[1674248124453,0.40903042,22272.0,22268.0,1.0]
[1674248124722,0.10545242,22272.0,22269.0,0.013249]
[1674248124973,0.00019,22271.0,22269.0,5.0]
[1674248125228,0.15,22271.0,22264.0,0.449143]
[1674248125498,0.10045242,22270.0,22263.0,0.00019]
[1674248125757,0.00019,22268.0,22262.0,0.449192]
[1674248126019,0.41727142,22267.0,22261.0,0.449213]
[1674248126278,0.00019,22265.0,22259.0,0.599245]
[1674248126537,0.42734642,22264.0,22259.0,0.15]
[1674248127011,0.10045242,22264.0,22260.0,0.45447315]
[1674248127013,0.10045242,22263.0,22259.0,0.15]
[1674248127272,0.10045242,22262.0,22259.0,0.15]
[1674248127539,0.15078,22260.0,22259.0,0.15]
[1674248127787,0.56914942,22260.0,22259.0,0.15]
[1674248128104,1.01838542,22260.0,22259.0,0.15]
[1674248128335,0.317917,22260.0,22259.0,0.15]
[1674248128599,0.754663,22266.0,22259.0,0.15]
[1674248128600,0.555848,22274.0,22261.0,0.54319522]
[1674248128845,0.10474,22276.0,22266.0,0.45447315]
[1674248128846,0.01786821,22272.0,22266.0,0.45447315]
[1674248129103,0.01786821,22272.0,22270.0,0.15]
[1674248129359,0.01786821,22272.0,22271.0,0.18502243]
[1674248129616,0.16845821,22272.0,22270.0,0.15]
[1674248129862,0.33114,22271.0,22270.0,0.15]
[1674248130116,0.449014,22271.0,22270.0,0.15]
[1674248130378,0.332003,22271.0,22270.0,0.15]
[1674248130708,1.50112855,22271.0,22263.0,0.15]
[1674248130896,0.16371928,22267.0,22263.0,0.15]
[1674248131155,0.15078,22264.0,22263.0,0.15]
[1674248131413,1.92934857,22264.0,22263.0,0.15]
[1674248131677,1.72259798,22264.0,22263.0,0.15]
[1674248131954,3.09915473,22264.0,22263.0,0.15]
[1674248132176,1.42259798,22264.0,22263.0,0.15]
[1674248132428,0.766178,22264.0,22263.0,0.15]
[1674248132690,0.317023,22264.0,22261.0,0.51755933]
[1674248132963,0.00019,22264.0,22261.0,0.51755933]
[1674248133234,0.00019,22264.0,22263.0,0.0187339]
[1674248133235,0.0317023,22264.0,22263.0,0.0187339]
[1674248133476,1.295234,22264.0,22263.0,0.0187339]
[1674248133741,2.39362501,22264.0,22261.0,0.46608785]
[1674248133995,0.79791018,22262.0,22260.0,0.76913486]
[1674248134253,3.21880116,22261.0,22248.0,0.1543994]
[1674248134582,0.59981018,22253.0,22248.0,0.1543994]
[1674248134788,1.33048918,22252.0,22248.0,0.1543994]
[1674248135049,0.40913601,22251.0,22248.0,0.1543994]
[1674248135298,0.31202,22250.0,22248.0,0.1543994]
[1674248135554,0.316967,22249.0,22248.0,0.1543994]
[1674248135914,0.316967,22249.0,22248.0,0.18502916]
[1674248136085,0.4516,22250.0,22248.0,1.05854037]
[1674248136086,0.44934728,22250.0,22248.0,1.05854037]
[1674248136338,0.44934728,22250.0,22249.0,0.088905]
[1674248136590,0.44934728,22250.0,22248.0,0.15458922]
[1674248136591,0.49374201,22250.0,22248.0,0.15458922]
[1674248136850,0.32424,22249.0,22248.0,0.0043994]
[1674248137169,0.32397,22249.0,22248.0,0.0043994]
[1674248137365,0.3237,22249.0,22248.0,0.0043994]
[1674248137614,0.2987,22249.0,22248.0,0.0043994]
[1674248138396,0.37345073,22249.0,22248.0,0.0043994]
[1674248138623,1.30952216,22249.0,22239.0,0.00370878]
[1674248138876,0.42779801,22248.0,22239.0,0.00370878]
[1674248139130,0.2318,22244.0,22239.0,0.00370878]
[1674248139380,0.2318,22244.0,22242.0,0.15]
[1674248139381,0.39504301,22243.0,22242.0,0.15]
[1674248139632,0.40354301,22243.0,22242.0,0.15]
[1674248139889,0.296652,22243.0,22242.0,0.15]
[1674248140411,0.296652,22243.0,22239.0,0.00370878]
[1674248140662,0.2318,22244.0,22241.0,0.449603]
[1674248140932,0.2318,22244.0,22242.0,0.039156]
[1674248141187,0.2318,22244.0,22242.0,0.18502243]
[1674248141443,0.43771928,22267.0,22243.0,0.83869558]
[1674248141705,0.16371928,22267.0,22252.0,0.449393]
[1674248141960,0.16371928,22267.0,22260.0,0.01245]
[1674248142277,0.16371928,22267.0,22261.0,0.039074]
[1674248142479,0.16371928,22267.0,22264.0,0.45447315]
[1674248142752,0.16371928,22267.0,22265.0,1.53776558]
[1674248143000,0.08126964,22269.0,22266.0,0.67854458]
[1674248143255,0.01786821,22272.0,22268.0,0.45447315]
[1674248143613,0.01786821,22272.0,22269.0,0.22406043]
[1674248143769,0.01434909,22276.0,22271.0,0.6]
[1674248144033,0.01434909,22276.0,22275.0,0.45447315]
[1674248144292,0.0001,22280.0,22275.0,0.45447315]
[1674248144293,0.0001,22280.0,22275.0,1.98629458]
[1674248144546,0.0001,22280.0,22276.0,0.67850058]
[1674248144813,0.0001,22280.0,22277.0,0.897778]
[1674248145068,0.0001,22280.0,22278.0,0.83611844]
[1674248145316,0.0001,22280.0,22279.0,0.49346415]
[1674248145566,0.0001,22280.0,22279.0,1.39117015]
[1674248145823,0.15,22286.0,22279.0,2.03354558]
[1674248145824,0.04996,22286.0,22279.0,2.03354558]
[1674248146153,0.04996,22286.0,22281.0,0.45447315]
[1674248146365,0.04996,22286.0,22282.0,0.038977]
[1674248146622,0.04996,22286.0,22282.0,1.346346]
[1674248146879,0.04996,22286.0,22283.0,1.91944415]
[1674248147140,0.04996,22286.0,22284.0,1.35197715]
[1674248147441,0.04996,22286.0,22285.0,0.038966]
[1674248147647,0.04996,22286.0,22285.0,0.56902915]
[1674248147896,0.0175782,22289.0,22285.0,0.56902915]
[1674248148151,0.0175782,22289.0,22286.0,1.35188915]
[1674248148407,0.15,22288.0,22287.0,0.56901915]
[1674248148668,0.05,22288.0,22287.0,0.038956]
[1674248148955,0.0173784,22289.0,22287.0,0.038956]
[1674248149224,0.10576941,22289.0,22283.0,1.874768]
[1674248149489,0.09839101,22288.0,22283.0,1.426]
[1674248149762,0.0073784,22289.0,22277.0,0.448877]
[1674248149763,0.42472601,22287.0,22279.0,0.15]
[1674248150086,0.40913501,22286.0,22281.0,0.448795]
[1674248150333,0.43100101,22285.0,22279.0,0.15]
[1674248150589,1.48027416,22284.0,22283.0,0.15]
[1674248150832,1.224926,22284.0,22283.0,0.04440657]
[1674248151079,0.07401267,22282.0,22279.0,0.15]
[1674248151408,1.31473101,22281.0,22279.0,0.15]
[1674248151620,1.44046516,22280.0,22274.0,0.06407655]
[1674248151874,0.55004,22277.0,22274.0,0.06407655]
[1674248152128,2.71949016,22276.0,22271.0,0.00306188]
[1674248152377,0.55004,22274.0,22271.0,0.00306188]
[1674248152690,0.274,22272.0,22271.0,0.00306188]
[1674248152930,0.325502,22272.0,22271.0,0.00306188]
[1674248153188,1.17836616,22272.0,22270.0,0.15]
[1674248153430,1.61624416,22271.0,22270.0,0.15]
[1674248153661,2.17386715,22271.0,22262.0,0.15]
[1674248153948,0.88170816,22270.0,22262.0,0.15]
[1674248154166,0.602414,22269.0,22262.0,0.15]
[1674248154411,0.304855,22268.0,22263.0,0.18502243]
[1674248154650,0.335433,22267.0,22262.0,0.15]
[1674248154896,0.322532,22266.0,22263.0,0.18502243]
[1674248155139,0.546799,22278.0,22265.0,0.04996]
[1674248155387,0.6613655,22278.0,22268.0,0.04996]
[1674248155624,0.6613655,22278.0,22266.0,0.18502243]
[1674248155625,1.2114055,22278.0,22266.0,0.06573078]
[1674248155892,0.49275443,22277.0,22267.0,0.08521616]
[1674248156134,0.49275443,22277.0,22263.0,0.08521616]
[1674248156135,2.096099,22274.0,22263.0,0.08521616]
[1674248156377,0.49955243,22273.0,22263.0,0.08521616]
[1674248156640,0.898068,22270.0,22263.0,0.08521616]
[1674248156893,0.49181843,22269.0,22263.0,0.23521616]
[1674248157161,0.00306,22271.0,22268.0,0.04996]
[1674248157409,0.15,22270.0,22269.0,1.02778331]
[1674248157662,0.15306,22271.0,22269.0,0.937148]
[1674248157663,0.05366,22271.0,22269.0,0.937148]
[1674248157909,0.05366,22271.0,22269.0,0.898108]
[1674248158155,0.05366,22271.0,22270.0,0.11462]
[1674248158395,0.09888,22278.0,22268.0,0.04996]
[1674248158637,0.94272858,22277.0,22269.0,0.08521616]
[1674248158881,0.897882,22275.0,22269.0,0.08521616]
[1674248159155,0.897882,22275.0,22256.0,0.548186]
[1674248159156,0.96669158,22274.0,22259.0,0.14884]
[1674248159399,0.4467893,22270.0,22262.0,0.04996]
[1674248159634,0.49274243,22269.0,22262.0,0.04996]
[1674248159884,0.4467893,22270.0,22258.0,0.09878]
[1674248159885,0.97304243,22268.0,22258.0,0.04996]
[1674248160140,0.50387043,22267.0,22258.0,0.04996]
[1674248160375,0.50387043,22267.0,22257.0,0.00053929]
[1674248160376,0.449146,22265.0,22257.0,0.00053929]
[1674248160633,0.49396943,22264.0,22257.0,0.09466945]
[1674248160871,0.301404,22263.0,22261.0,0.04996]
[1674248161115,0.0984,22266.0,22257.0,0.00053929]
[1674248161354,0.89839,22262.0,22257.0,0.00053929]
[1674248161616,0.94875758,22261.0,22257.0,0.00053929]
[1674248161859,1.41694158,22260.0,22254.0,0.00447224]
[1674248162124,0.449195,22262.0,22255.0,0.04996]
[1674248162125,0.311776,22259.0,22255.0,0.04996]
[1674248162364,0.449161,22264.0,22253.0,0.09755224]
[1674248162615,0.18502243,22264.0,22263.0,0.04996]
[1674248162903,0.449132,22266.0,22263.0,0.04996]
[1674248162904,0.15,22266.0,22263.0,0.04996]
[1674248163155,0.74756,22265.0,22260.0,0.04996]
[1674248163399,0.307834,22264.0,22260.0,0.04996]
[1674248163643,0.307834,22264.0,22254.0,0.09821]
[1674248163644,1.39038143,22263.0,22254.0,0.04996]
[1674248163882,0.48774843,22262.0,22258.0,0.04996]
[1674248164156,0.15,22259.0,22258.0,0.04996]
[1674248164384,0.310368,22259.0,22258.0,0.04996]
[1674248164960,0.49539043,22259.0,22254.0,0.15]
[1674248165215,0.04179604,22257.0,22254.0,0.15]
[1674248165491,0.898634,22256.0,22251.0,0.04996]
[1674248165737,0.607154,22255.0,22242.0,0.00019]
[1674248165985,0.607154,22255.0,22252.0,0.15]
[1674248165986,0.330498,22254.0,22252.0,0.15]
[1674248166237,0.61324,22253.0,22252.0,0.15]
[1674248166490,1.95376486,22253.0,22248.0,0.05418012]
[1674248166759,0.52269643,22252.0,22248.0,0.05418012]
[1674248167029,0.320135,22251.0,22248.0,0.05418012]
[1674248167303,0.19179604,22257.0,22249.0,0.45447315]
[1674248167552,0.19179604,22257.0,22256.0,0.01996]
[1674248167837,0.19179604,22257.0,22256.0,0.09555]
[1674248168588,0.04179604,22257.0,22256.0,0.09555]
[1674248168837,0.04179604,22257.0,22256.0,0.01996]
[1674248169343,0.36966304,22257.0,22246.0,0.449516]
[1674248169612,0.49357343,22256.0,22254.0,0.15]
[1674248169866,0.312859,22255.0,22254.0,0.15]
[1674248170120,0.312859,22255.0,22251.0,0.15]
[1674248170367,0.15,22256.0,22253.0,0.449377]
[1674248170619,0.15,22256.0,22252.0,0.449395]
[1674248170864,0.15,22256.0,22254.0,0.449357]
[1674248171116,0.04179604,22257.0,22255.0,0.039264]
[1674248171372,0.04179604,22257.0,22255.0,0.449319]
[1674248171624,0.04179604,22257.0,22256.0,0.039257]
[1674248171873,0.04179604,22257.0,22256.0,0.564164]
[1674248172124,0.04179604,22257.0,22256.0,0.714164]
[1674248172644,0.22681847,22257.0,22256.0,0.15]
[1674248172969,0.36467904,22257.0,22256.0,0.15]
[1674248173178,0.35501204,22257.0,22254.0,0.449337]
[1674248173427,0.04901804,22257.0,22256.0,0.449317]
[1674248173681,0.04901804,22257.0,22256.0,0.488573]
[1674248173936,0.04676593,22257.0,22256.0,0.039256]
[1674248174187,0.04676593,22257.0,22255.0,0.449332]
[1674248174466,0.18502243,22256.0,22246.0,0.09741]
[1674248174688,0.05144252,22257.0,22248.0,0.449478]
[1674248174689,0.18502243,22255.0,22248.0,0.449478]
[1674248174948,0.04676593,22257.0,22246.0,0.4495]
[1674248174949,0.50849543,22254.0,22246.0,0.4495]
[1674248175217,0.64191643,22253.0,22247.0,0.15]
[1674248175480,0.50323543,22252.0,22247.0,0.15]
[1674248175739,0.51124443,22251.0,22245.0,0.15]
[1674248176008,0.15,22253.0,22245.0,0.15]
[1674248176009,0.65652743,22250.0,22245.0,0.15]
[1674248176261,0.51254143,22249.0,22245.0,0.15]
[1674248176521,0.322378,22248.0,22244.0,0.00422012]
[1674248176767,0.345348,22247.0,22244.0,0.45376612]
[1674248177020,0.18502243,22247.0,22244.0,0.45376612]
[1674248177277,0.18502243,22247.0,22245.0,0.15]
[1674248177533,0.09529,22254.0,22245.0,0.599539]
[1674248177801,0.09527,22250.0,22244.0,0.45376012]
[1674248178058,0.15,22248.0,22244.0,0.00422012]
[1674248178357,0.318782,22247.0,22244.0,0.00422012]
[1674248178587,0.303696,22246.0,22244.0,0.00422012]
[1674248178839,0.319451,22245.0,22244.0,0.00422012]
[1674248179084,0.31719797,22245.0,22244.0,0.00422012]
[1674248180128,0.46494464,22245.0,22244.0,0.00422012]
[1674248180681,0.46494464,22245.0,22243.0,0.00449464]
[1674248180682,0.67404464,22245.0,22243.0,0.00449464]
[1674248180914,0.316773,22244.0,22239.0,0.00370878]
[1674248181156,1.39752243,22243.0,22239.0,0.00370878]
[1674248181412,0.311682,22242.0,22239.0,0.00370878]
[1674248181670,1.09691743,22241.0,22239.0,0.00370878]
[1674248181928,0.51267843,22240.0,22239.0,0.00370878]
[1674248182170,1.41231843,22240.0,22239.0,0.00370878]
[1674248182426,0.477656,22240.0,22239.0,0.00370878]
[1674248182678,0.15369122,22239.0,22227.0,4.45587741]
[1674248182944,0.50582943,22238.0,22232.0,0.449797]
[1674248183194,0.18502243,22237.0,22233.0,0.15]
[1674248183455,0.18502243,22237.0,22230.0,0.544026]
[1674248183708,0.18502243,22236.0,22232.0,0.449784]
[1674248183957,0.18502243,22242.0,22234.0,0.15]
[1674248184225,0.18502243,22244.0,22235.0,0.449728]
[1674248184487,0.18502243,22244.0,22234.0,0.599751]
[1674248184488,0.18502243,22244.0,22234.0,0.15]
[1674248184762,0.18502243,22243.0,22235.0,0.89948]
[1674248185002,0.15,22242.0,22234.0,0.14706414]
[1674248185259,0.50113943,22241.0,22236.0,0.449713]
[1674248185513,0.18502243,22244.0,22236.0,0.449713]
[1674248185767,0.18502243,22244.0,22237.0,0.046099]
[1674248186030,0.09385,22250.0,22239.0,1.348974]
[1674248186288,0.09027,22251.0,22239.0,1.348974]
[1674248186551,0.18502243,22251.0,22240.0,0.65044755]
[1674248186803,0.15,22252.0,22243.0,0.899146]
[1674248186804,0.18502243,22250.0,22243.0,0.899146]
[1674248187046,0.18276961,22250.0,22243.0,0.449573]
[1674248187565,0.15,22254.0,22244.0,0.60447315]
[1674248187821,0.543126,22259.0,22244.0,0.60447315]
[1674248187822,0.06444373,22257.0,22247.0,1.348494]
[1674248188084,0.06444373,22257.0,22248.0,0.031047]
[1674248188432,0.24946616,22257.0,22250.0,0.898848]
[1674248188615,0.06444373,22257.0,22250.0,0.898848]
[1674248189108,0.06444373,22257.0,22251.0,0.15]
[1674248189369,0.06444373,22257.0,22252.0,0.898762]
[1674248189898,0.24946616,22257.0,22253.0,0.15]
[1674248190198,0.06444373,22257.0,22254.0,0.449353]
[1674248190965,0.06219162,22257.0,22253.0,0.59926]
[1674248191228,0.24721405,22257.0,22253.0,0.44936]
[1674248191724,0.06219162,22257.0,22253.0,0.44936]
[1674248191980,0.18277032,22256.0,22252.0,0.449381]
[1674248192229,0.18502243,22255.0,22249.0,0.44944]
[1674248192483,0.48895443,22254.0,22249.0,0.44944]
[1674248192739,0.18502243,22253.0,22246.0,0.449517]
[1674248193001,0.51203421,22252.0,22247.0,0.15]
[1674248193255,0.18502243,22251.0,22248.0,0.23]
[1674248193798,0.15,22255.0,22248.0,0.23]
[1674248194033,0.33502243,22255.0,22249.0,0.02361531]
[1674248194287,0.33502243,22255.0,22250.0,0.02361531]
[1674248194550,0.3,22254.0,22248.0,0.23]
[1674248194799,0.49834143,22253.0,22248.0,0.25361531]
[1674248195050,0.47732006,22252.0,22248.0,0.25361531]
[1674248195309,0.15,22255.0,22248.0,0.23]
[1674248195577,0.18502243,22255.0,22249.0,0.02361531]
[1674248195848,0.18502243,22255.0,22251.0,0.15]
[1674248196130,0.06219162,22257.0,22252.0,0.02361531]
[1674248196382,0.06219162,22257.0,22253.0,0.02361531]
[1674248196894,0.06219162,22257.0,22253.0,0.599366]
[1674248197141,0.05993951,22257.0,22252.0,0.2794101]
[1674248197431,0.05993951,22257.0,22251.0,0.15]
[1674248197432,0.24496194,22257.0,22251.0,0.15]
[1674248197645,0.49901543,22256.0,22251.0,0.15]
[1674248197893,0.49901543,22256.0,22249.0,0.449439]
[1674248197894,0.33502243,22255.0,22249.0,0.449439]
[1674248198153,0.49851843,22254.0,22250.0,0.449423]
[1674248198412,0.18502243,22254.0,22251.0,0.15]
[1674248198664,0.0248998,22257.0,22252.0,0.449397]
[1674248198916,0.0248998,22257.0,22253.0,0.15]
[1674248199162,0.314441,22256.0,22253.0,0.59936]
[1674248199414,0.0248998,22257.0,22253.0,0.59936]
[1674248200176,0.0248998,22257.0,22254.0,0.031025]
[1674248200434,0.0176778,22257.0,22255.0,0.898674]
[1674248200688,0.2149,22260.0,22256.0,0.031019]
[1674248200952,0.2149,22260.0,22257.0,1.378888]
[1674248201202,0.2149,22260.0,22257.0,1.497876]
[1674248201450,0.01791348,22264.0,22258.0,0.48548215]
[1674248201721,0.01791348,22264.0,22259.0,1.80219315]
[1674248201992,0.01791348,22264.0,22260.0,0.48547215]
[1674248202252,0.01823513,22270.0,22263.0,0.45447315]
[1674248202522,0.12979001,22275.0,22269.0,0.45447315]
[1674248202783,0.09888,22285.0,22270.0,1.80152715]
[1674248203026,0.28390243,22285.0,22271.0,0.48542815]
[1674248203290,0.28390243,22285.0,22275.0,0.448929]
[1674248203291,0.18502243,22284.0,22275.0,0.448929]
[1674248203543,0.310421,22283.0,22275.0,0.897858]
[1674248203846,0.310421,22283.0,22275.0,1.01348422]
[1674248203847,0.323671,22282.0,22275.0,1.01348422]
[1674248204082,0.50388643,22281.0,22271.0,0.448994]
[1674248204317,1.04392466,22280.0,22267.0,0.449077]
[1674248204572,0.96380258,22279.0,22276.0,0.15]
[1674248204826,0.12866072,22273.0,22266.0,1.922625]
[1674248205120,0.49952143,22272.0,22266.0,1.922625]
[1674248205331,0.306682,22271.0,22267.0,0.449078]
[1674248205596,0.18502243,22270.0,22266.0,1.922625]
[1674248205851,0.18502243,22269.0,22266.0,1.3739]
[1674248206106,0.12866072,22273.0,22264.0,0.02212249]
[1674248206376,0.12866072,22273.0,22264.0,0.98786279]
[1674248206377,0.474325,22272.0,22264.0,0.98786279]
[1674248206633,0.18502243,22271.0,22264.0,1.43701779]
[1674248206895,0.18502243,22270.0,22265.0,0.23459318]
[1674248207147,0.18502243,22269.0,22265.0,0.15]
[1674248207399,0.18194483,22275.0,22265.0,0.15]
[1674248207400,0.08131483,22275.0,22266.0,0.45447315]
[1674248207716,0.08131483,22275.0,22267.0,0.48544515]
[1674248207909,0.26633726,22275.0,22270.0,0.8515]
[1674248208160,0.29297099,22275.0,22271.0,0.030957]
[1674248208412,0.74132259,22275.0,22270.0,0.8515]
[1674248208675,0.15,22273.0,22264.0,0.02212249]
[1674248208921,1.40954158,22272.0,22264.0,0.02212249]
[1674248209178,1.41413558,22271.0,22264.0,0.02212249]
[1674248209430,1.09630114,22270.0,22264.0,0.02212249]
[1674248209687,1.39114058,22269.0,22264.0,0.02212249]
[1674248209948,0.0216,22267.0,22264.0,0.02212249]
[1674248210193,0.315069,22266.0,22264.0,0.02212249]
[1674248210444,0.315069,22266.0,22261.0,0.00358931]
[1674248210445,0.447842,22265.0,22261.0,0.00358931]
[1674248210705,0.65242143,22264.0,22261.0,0.00358931]
[1674248210961,0.336403,22263.0,22261.0,0.00358931]
[1674248211215,0.316372,22262.0,22261.0,0.00358931]
[1674248211472,0.18502243,22265.0,22261.0,0.00358931]
[1674248211738,0.318006,22264.0,22261.0,0.00358931]
[1674248211992,0.311592,22263.0,22261.0,0.00358931]
[1674248212257,0.317156,22262.0,22261.0,0.00358931]
[1674248213010,0.50217843,22262.0,22261.0,0.00358931]
[1674248213267,0.317156,22262.0,22261.0,0.00358931]
[1674248214148,0.00358,22261.0,22253.0,0.00054043]
[1674248214342,0.321281,22260.0,22253.0,0.00054043]
[1674248214606,0.18502243,22259.0,22253.0,0.00054043]
[1674248214862,0.51689643,22258.0,22253.0,0.00054043]
[1674248215118,0.50444343,22257.0,22253.0,0.00054043]
[1674248215400,0.326404,22256.0,22253.0,0.15054043]
[1674248215644,0.18002243,22255.0,22253.0,0.00054043]
[1674248215890,0.313726,22254.0,22253.0,0.00054043]
[1674248216422,0.29232,22254.0,22253.0,0.00054043]
[1674248218208,0.15,22256.0,22253.0,0.00054043]
[1674248218458,0.319003,22255.0,22253.0,0.00054043]
[1674248218709,0.313498,22254.0,22253.0,0.00054043]
[1674248218981,0.31124578,22254.0,22253.0,0.00054043]
[1674248219730,0.31124578,22254.0,22253.0,0.07613043]
[1674248219995,0.00358,22261.0,22253.0,0.53354248]
[1674248220257,0.45805315,22261.0,22254.0,0.033279]
[1674248220599,0.00358,22261.0,22256.0,0.898631]
[1674248220798,0.25643,22265.0,22257.0,0.183266]
[1674248221047,0.15,22265.0,22257.0,0.15]
[1674248221311,0.15,22266.0,22258.0,0.449265]
[1674248221562,0.15,22266.0,22259.0,0.15]
[1674248221821,0.78414343,22266.0,22259.0,0.15]
[1674248222067,1.04269361,22265.0,22253.0,0.00054043]
[1674248222317,0.898412,22262.0,22253.0,0.00054043]
[1674248222572,0.15,22260.0,22253.0,0.00054043]
[1674248222830,0.49745543,22259.0,22253.0,0.00054043]
[1674248223085,0.07105,22254.0,22253.0,0.00054043]
[1674248223339,0.54549743,22254.0,22252.0,0.00422012]
[1674248223597,0.00460371,22252.0,22248.0,0.23019]
[1674248223853,1.39489358,22251.0,22245.0,0.00019]
[1674248224100,0.51223343,22250.0,22245.0,0.00019]
[1674248224357,0.49167243,22249.0,22245.0,0.00019]
[1674248224605,0.51612943,22248.0,22245.0,0.00019]
[1674248224857,0.95147558,22247.0,22245.0,0.00019]
[1674248225124,0.308607,22246.0,22245.0,0.00019]
[1674248225671,0.18530001,22247.0,22245.0,0.00019]
[1674248226175,0.18530001,22247.0,22245.0,0.15019]
[1674248226426,0.18530001,22247.0,22245.0,0.00019]
[1674248226938,0.317801,22246.0,22245.0,0.00019]
[1674248227468,0.3681111,22246.0,22245.0,0.00019]
[1674248227730,0.317801,22246.0,22245.0,0.00019]
[1674248229530,0.15,22245.0,22236.0,0.15]
[1674248229776,0.50587543,22244.0,22238.0,0.449675]
[1674248230031,0.49986343,22243.0,22236.0,0.449715]
[1674248230298,0.49469743,22242.0,22235.0,0.60411098]
[1674248230557,0.18502243,22242.0,22236.0,0.51060939]
[1674248230813,0.18502243,22242.0,22237.0,0.033346]
[1674248231074,0.18530001,22247.0,22240.0,1.78856]
[1674248231322,0.18530001,22247.0,22241.0,0.633336]
[1674248231572,0.18530001,22247.0,22240.0,2.24303315]